bitfinex/quotes_BTCUSD_20241022
["timestamp","ask_amount","ask_price","bid_price","bid_amount"]
[1729601464455,0.298378,67029.0,67024.0,0.012824]
[1729601464674,0.149191,67028.0,67024.0,0.012824]
[1729601464884,0.149196,67026.0,67024.0,0.021824]
[1729601465351,0.149196,67026.0,67024.0,0.000824]
[1729601465783,0.149196,67026.0,67024.0,0.021824]
[1729601465992,0.149196,67026.0,67024.0,0.009824]
[1729601466204,0.149196,67026.0,67024.0,0.000824]
[1729601466421,0.298392,67026.0,67024.0,0.012824]
[1729601466637,0.149198,67025.0,67024.0,0.009824]
[1729601467078,0.149198,67025.0,67024.0,0.019824]
[1729601467283,0.149198,67025.0,67024.0,0.009824]
[1729601467917,0.149198,67025.0,67024.0,0.000824]
[1729601468369,0.46988439,67027.0,67024.0,0.007824]
[1729601468624,0.32069139,67027.0,67024.0,0.014824]
[1729601468889,0.149198,67025.0,67024.0,0.000824]
[1729601469104,0.149198,67025.0,67024.0,0.002824]
[1729601469105,5.03340625,67025.0,67024.0,0.002824]
[1729601469359,5.03340625,67025.0,67024.0,0.00545562]
[1729601469360,5.2053654,67025.0,67024.0,0.00545562]
[1729601469570,5.2053654,67025.0,67016.0,0.000824]
[1729601469571,0.264215,67017.0,67016.0,0.000824]
[1729601469788,5.11038501,67017.0,67016.0,0.000824]
[1729601470006,5.13235869,67017.0,67016.0,0.000824]
[1729601470223,5.11038501,67017.0,67016.0,0.000824]
[1729601470436,5.17652592,67017.0,67016.0,0.000824]
[1729601470646,5.20212895,67017.0,67016.0,0.000824]
[1729601470861,5.24621951,67017.0,67016.0,0.000824]
[1729601471287,5.15447557,67017.0,67016.0,0.000824]
[1729601471748,5.11038501,67017.0,67016.0,0.000824]
[1729601471955,5.08826415,67017.0,67016.0,0.000824]
[1729601472165,5.08826415,67017.0,67016.0,0.001824]
[1729601472409,3.536715,67017.0,67016.0,0.001824]
[1729601472668,2.981715,67017.0,67016.0,0.001824]
[1729601472877,2.991715,67017.0,67016.0,0.002824]
[1729601473109,2.342715,67017.0,67016.0,0.002824]
[1729601473330,2.347715,67017.0,67016.0,0.002824]
[1729601473539,2.352715,67017.0,67016.0,0.001824]
[1729601473959,2.342715,67017.0,67016.0,0.002824]
[1729601474111,2.49667415,67017.0,67016.0,0.002824]
[1729601474324,2.347715,67017.0,67016.0,0.002824]
[1729601474555,2.39180471,67017.0,67016.0,0.002824]
[1729601474727,2.39180471,67017.0,67016.0,0.001824]
[1729601474933,2.39782094,67017.0,67016.0,0.001824]
[1729601475349,2.40282094,67017.0,67016.0,0.002824]
[1729601475562,2.34873123,67017.0,67016.0,0.002824]
[1729601476036,2.27223123,67017.0,67016.0,0.001824]
[1729601476281,2.27223123,67017.0,67016.0,0.002824]
[1729601476781,2.2493422,67017.0,67016.0,0.002824]
[1729601477027,1.3443422,67017.0,67016.0,0.002824]
[1729601477269,0.7163422,67017.0,67016.0,0.002824]
[1729601477485,0.67723123,67017.0,67016.0,0.002824]
[1729601477727,0.67723123,67017.0,67016.0,0.001824]
[1729601477728,0.67223123,67017.0,67016.0,0.001824]
[1729601477946,0.149215,67017.0,67016.0,0.002824]
[1729601478400,0.149215,67017.0,67016.0,0.001824]
[1729601478632,0.149215,67017.0,67016.0,0.000824]
[1729601478837,0.149215,67017.0,67016.0,0.001824]
[1729601479569,0.149215,67017.0,67016.0,0.003824]
[1729601479804,0.298413,67022.0,67016.0,0.003824]
[1729601480006,0.149211,67019.0,67016.0,0.002824]
[1729601480222,0.298413,67021.0,67016.0,0.15178315]
[1729601480435,0.149205,67022.0,67017.0,0.0927]
[1729601480654,0.298391,67026.0,67017.0,0.0927]
[1729601480863,0.149205,67022.0,67017.0,0.0927]
[1729601481288,0.149206,67022.0,67018.0,0.14895915]
[1729601481497,0.46988539,67027.0,67019.0,0.0832]
[1729601481712,0.149202,67023.0,67020.0,0.14895915]
[1729601481936,0.149205,67022.0,67020.0,0.14895915]
[1729601482347,0.149206,67021.0,67020.0,0.14895915]
[1729601483588,0.149206,67021.0,67020.0,0.15395915]
[1729601484014,0.29841,67022.0,67020.0,0.15395915]
[1729601484254,0.298387,67027.0,67020.0,0.15395915]
[1729601484532,0.149205,67022.0,67020.0,0.15395915]
[1729601484776,0.298378,67029.0,67020.0,0.14895915]
[1729601485032,0.149205,67022.0,67020.0,0.14895915]
[1729601485289,0.149206,67021.0,67020.0,0.15095915]
[1729601485537,0.149206,67021.0,67020.0,0.15195915]
[1729601485786,0.149206,67021.0,67020.0,0.15878415]
[1729601486021,0.149206,67021.0,67020.0,0.15578415]
[1729601486254,0.149206,67021.0,67020.0,0.15878415]
[1729601486450,0.149206,67021.0,67020.0,0.15278415]
[1729601486917,0.149206,67021.0,67020.0,0.15878415]
[1729601487572,0.149206,67021.0,67020.0,0.15578415]
[1729601487993,0.149206,67021.0,67020.0,0.006825]
[1729601488491,0.149206,67021.0,67020.0,0.009825]
[1729601489158,4.724796,67021.0,67020.0,0.000825]
[1729601489668,4.724796,67021.0,67020.0,0.004825]
[1729601489886,4.73857822,67021.0,67020.0,0.004825]
[1729601490311,4.78268538,67021.0,67020.0,0.005825]
[1729601490525,4.93664453,67021.0,67020.0,0.005825]
[1729601490953,4.78768538,67021.0,67020.0,0.005825]
[1729601491173,4.79768538,67021.0,67020.0,0.004825]
[1729601491394,4.92707561,67021.0,67020.0,0.004825]
[1729601491652,4.92707561,67021.0,66989.0,0.2237587]
[1729601491653,0.298527,66996.0,66989.0,0.2237587]
[1729601491857,0.32076439,66994.0,66989.0,0.2237587]
[1729601492066,0.149267,66994.0,66989.0,0.2237587]
[1729601492755,0.149267,66994.0,66991.0,0.00223902]
[1729601493181,0.149263,66996.0,66993.0,0.009825]
[1729601493392,0.005,67008.0,66994.0,0.22595915]
[1729601493613,0.2237587,67003.0,66994.0,0.22595915]
[1729601493824,0.298494,67004.0,66995.0,0.00869105]
[1729601493825,0.149253,67001.0,66995.0,0.00869105]
[1729601494045,0.149248,67003.0,66996.0,0.14895915]
[1729601494258,0.149248,67003.0,66996.0,0.29822015]
[1729601494463,0.298494,67004.0,66997.0,0.00868119]
[1729601494464,0.14925,67002.0,66997.0,0.00868119]
[1729601494671,0.149256,66999.0,66997.0,0.15764034]
[1729601494938,0.298505,67001.0,66997.0,0.15764034]
[1729601495187,0.149258,66998.0,66997.0,0.15764034]
[1729601495618,0.149255,67000.0,66997.0,0.16364034]
[1729601495854,0.001,66999.0,66997.0,0.17164034]
[1729601496065,0.298494,67003.0,66997.0,0.15764034]
[1729601496282,0.149258,66998.0,66997.0,0.15764034]
[1729601496467,0.149258,66998.0,66997.0,0.16364034]
[1729601496638,0.39525609,67007.0,66997.0,0.16364034]
[1729601496847,0.149257,66999.0,66997.0,0.16364034]
[1729601497048,0.150258,66998.0,66997.0,0.17164034]
[1729601497631,0.001,66998.0,66997.0,0.16646534]
[1729601497957,0.001,66998.0,66997.0,0.17246534]
[1729601498515,0.149252,67001.0,66997.0,0.15846534]
[1729601498723,0.149251,67001.0,66997.0,0.16646534]
[1729601498878,0.149254,67000.0,66997.0,0.16446534]
[1729601499299,0.149258,66998.0,66997.0,0.17246534]
[1729601499657,0.149258,66998.0,66997.0,0.15846534]
[1729601499866,0.149258,66998.0,66997.0,0.16646534]
[1729601500206,0.298486,67005.0,66997.0,0.15846534]
[1729601500415,0.298486,67005.0,66998.0,0.14895915]
[1729601500817,0.149245,67004.0,66999.0,0.00868175]
[1729601501015,0.149245,67004.0,67000.0,0.14895915]
[1729601501197,0.298486,67005.0,67000.0,0.14895915]
[1729601501395,0.298455,67012.0,67001.0,0.00867189]
[1729601501599,0.149244,67005.0,67002.0,0.14895915]
[1729601501999,0.149244,67005.0,67003.0,0.00866204]
[1729601502202,0.149244,67005.0,67004.0,0.14895915]
[1729601502621,0.149244,67005.0,67004.0,0.15761626]
[1729601503447,0.24623847,67005.0,67004.0,0.00865711]
[1729601503876,0.149251,67001.0,67000.0,0.003]
[1729601504290,0.46999639,67002.0,66997.0,0.000825]
[1729601504493,0.149258,66998.0,66997.0,0.14978415]
[1729601505616,0.149258,66998.0,66997.0,0.15578415]
[1729601505827,4.724848,66998.0,66997.0,0.006825]
[1729601506175,4.724848,66998.0,66997.0,0.01551792]
[1729601506176,4.84647454,66998.0,66997.0,0.01551792]
[1729601506399,4.84647454,66998.0,66997.0,0.015825]
[1729601506871,4.724848,66998.0,66997.0,0.015825]
[1729601507104,4.724848,66998.0,66997.0,0.009825]
[1729601507347,4.724848,66998.0,66997.0,0.000825]
[1729601507572,4.724848,66998.0,66997.0,0.007825]
[1729601507753,4.724848,66998.0,66997.0,0.001825]
[1729601508526,4.87380715,66998.0,66997.0,0.001825]
[1729601508744,4.724848,66998.0,66997.0,0.000825]
[1729601509152,4.728848,66998.0,66997.0,0.000825]
[1729601509774,0.153258,66998.0,66997.0,0.000825]
[1729601510427,0.149258,66998.0,66997.0,0.000825]
[1729601510645,0.150258,66998.0,66997.0,0.000825]
[1729601510849,0.001,66998.0,66997.0,0.14978415]
[1729601511410,0.001,66998.0,66997.0,0.15848523]
[1729601512031,0.149254,67000.0,66997.0,0.15848523]
[1729601512250,0.149254,67000.0,66998.0,0.14895915]
[1729601512495,0.47497439,67007.0,66998.0,0.14895915]
[1729601512496,0.149255,66999.0,66998.0,0.14895915]
[1729601513428,0.298503,67001.0,66998.0,0.14895915]
[1729601513646,0.149255,66999.0,66998.0,0.15295915]
[1729601513896,0.149255,66999.0,66998.0,0.14895915]
[1729601514344,0.149255,66999.0,66998.0,0.14995915]
[1729601515833,0.149255,66999.0,66998.0,0.15295915]
[1729601520879,0.298502,67002.0,66998.0,0.15295915]
[1729601521131,0.149255,66999.0,66998.0,0.15295915]
[1729601521907,0.298502,67002.0,66998.0,0.15195915]
[1729601522172,0.149255,66999.0,66998.0,0.15295915]
[1729601522629,0.298502,67002.0,66998.0,0.15295915]
[1729601522901,0.149255,66999.0,66998.0,0.14995915]
[1729601523154,0.149255,66999.0,66998.0,0.15295915]
[1729601523385,0.149255,66999.0,66998.0,0.14895915]
[1729601523616,0.2237587,67007.0,66998.0,0.14895915]
[1729601523617,0.1,67011.0,66998.0,0.14895915]
[1729601523834,0.149252,67001.0,66998.0,0.15295915]
[1729601524101,0.298491,67004.0,66999.0,0.149255]
[1729601524102,0.149245,67004.0,66999.0,0.149255]
[1729601524332,0.298462,67010.0,66999.0,0.149255]
[1729601524333,0.0138077,67009.0,67004.0,0.149242]
[1729601524560,0.0138077,67014.0,67008.0,0.149235]
[1729601524774,0.150869,67016.0,67010.0,0.447691]
[1729601524988,0.149221,67015.0,67011.0,0.14895915]
[1729601525207,0.0138077,67015.0,67011.0,0.29818715]
[1729601525472,0.14922,67015.0,67011.0,0.14895915]
[1729601525686,0.00165,67016.0,67011.0,0.14895915]
[1729601525897,0.149226,67013.0,67011.0,0.14895915]
[1729601526113,0.149227,67012.0,67011.0,0.14895915]
[1729601526553,0.149227,67012.0,67011.0,0.15695915]
[1729601526987,0.149227,67012.0,67011.0,0.14895915]
[1729601527132,0.149227,67012.0,67011.0,0.15695915]
[1729601527564,0.01380791,67013.0,67011.0,0.30418715]
[1729601527759,0.149222,67015.0,67011.0,0.16295915]
[1729601527969,0.16302991,67015.0,67011.0,0.16295915]
[1729601528480,0.16302991,67015.0,67011.0,0.15695915]
[1729601528710,0.149226,67013.0,67011.0,0.15695915]
[1729601528911,0.31225691,67013.0,67011.0,0.16295915]
[1729601529112,0.31225691,67013.0,67011.0,0.15495915]
[1729601529113,0.16303491,67012.0,67011.0,0.15495915]
[1729601529316,0.149227,67012.0,67011.0,0.15495915]
[1729601529542,0.149227,67012.0,67011.0,0.16295915]
[1729601529777,0.149227,67012.0,67011.0,0.15495915]
[1729601529997,0.16302885,67012.0,67011.0,0.16295915]
[1729601530209,0.149227,67012.0,67011.0,0.15695915]
[1729601530493,0.149227,67012.0,67011.0,0.15495915]
[1729601530711,0.149223,67014.0,67011.0,0.16295915]
[1729601530962,0.149223,67014.0,67011.0,0.14895915]
[1729601531198,0.149223,67014.0,67013.0,0.226424]
[1729601531199,0.01380087,67014.0,67013.0,0.226424]
[1729601531425,0.150868,67016.0,67013.0,0.22615915]
[1729601531661,0.14922,67015.0,67014.0,0.14895915]
[1729601532107,0.01545087,67016.0,67014.0,0.14895915]
[1729601532108,0.16466887,67016.0,67014.0,0.14895915]
[1729601532360,0.150868,67016.0,67014.0,0.14895915]
[1729601532576,0.00165,67016.0,67014.0,0.14895915]
[1729601533070,0.150868,67016.0,67014.0,0.15395915]
[1729601533302,0.150868,67016.0,67014.0,0.14895915]
[1729601533525,0.00165,67016.0,67014.0,0.14895915]
[1729601533749,0.00165,67016.0,67014.0,0.15695915]
[1729601533996,0.00165,67016.0,67014.0,0.15632114]
[1729601534236,0.00165,67016.0,67014.0,0.15332114]
[1729601534479,0.14922,67015.0,67014.0,0.15632114]
[1729601535160,0.01544601,67016.0,67014.0,0.15632114]
[1729601535398,0.16466401,67016.0,67014.0,0.15332114]
[1729601535864,0.14922,67015.0,67014.0,0.15332114]
[1729601536112,0.01379601,67015.0,67014.0,0.14832114]
[1729601536342,0.14922,67015.0,67014.0,0.15332114]
[1729601536562,0.149233,67009.0,67002.0,0.149248]
[1729601536766,0.298445,67014.0,67008.0,0.24711539]
[1729601537001,0.44766,67015.0,67014.0,0.005]
[1729601537202,0.149226,67013.0,67009.0,0.29819115]
[1729601537323,0.149227,67012.0,67009.0,0.14895915]
[1729601537545,0.298445,67014.0,67009.0,0.14895915]
[1729601537546,0.149229,67011.0,67009.0,0.14895915]
[1729601537753,0.149231,67011.0,67009.0,0.14895915]
[1729601538607,0.298445,67014.0,67009.0,0.14895915]
[1729601538810,0.00165,67016.0,67009.0,0.14895915]
[1729601538811,0.01379698,67013.0,67009.0,0.14895915]
[1729601538964,0.149222,67014.0,67010.0,0.14923]
[1729601539165,0.149222,67014.0,67011.0,0.14895915]
[1729601539365,0.149227,67012.0,67011.0,0.14895915]
[1729601539587,0.01379698,67012.0,67011.0,0.29818815]
[1729601539825,0.300087,67016.0,67011.0,0.14895915]
[1729601540027,0.01379698,67015.0,67011.0,0.14895915]
[1729601540339,0.149227,67012.0,67011.0,0.14895915]
[1729601540553,0.00165,67016.0,67011.0,0.14895915]
[1729601540792,0.149224,67013.0,67011.0,0.14895915]
[1729601541000,0.29844,67015.0,67011.0,0.14895915]
[1729601541001,0.149224,67014.0,67011.0,0.15395915]
[1729601541245,0.01380003,67014.0,67011.0,0.45241715]
[1729601541479,0.01545003,67016.0,67011.0,0.15395915]
[1729601541700,0.149223,67014.0,67011.0,0.14895915]
[1729601541964,0.149227,67012.0,67011.0,0.005]
[1729601542186,0.16302703,67012.0,67011.0,0.005]
[1729601542664,0.16302703,67012.0,67011.0,0.008]
[1729601543082,0.16302703,67012.0,67011.0,0.005]
[1729601543354,0.149233,67009.0,67008.0,0.02335669]
[1729601544032,0.2536931,67009.0,67008.0,0.02335669]
[1729601544465,0.26749497,67009.0,67008.0,0.02335669]
[1729601544694,0.16303487,67009.0,67008.0,0.00223851]
[1729601545185,0.149233,67009.0,67008.0,0.00223851]
[1729601545413,0.16303534,67009.0,67008.0,0.007]
[1729601547189,0.16303534,67009.0,67008.0,0.002]
[1729601547407,0.01380234,67009.0,67008.0,0.15719766]
[1729601547624,0.298445,67014.0,67008.0,0.30643166]
[1729601547625,0.149227,67012.0,67008.0,0.30643166]
[1729601547836,0.16303256,67012.0,67009.0,0.14895915]
[1729601548042,0.01380556,67012.0,67009.0,0.14895915]
[1729601548288,0.149229,67011.0,67009.0,0.14895915]
[1729601549851,0.149229,67011.0,67009.0,0.14995915]
[1729601550060,0.149229,67011.0,67009.0,0.15295915]
[1729601550271,0.149229,67011.0,67009.0,0.14995915]
[1729601550629,0.149229,67011.0,67009.0,0.15295915]
[1729601550839,0.149229,67011.0,67009.0,0.14995915]
[1729601551041,0.149229,67011.0,67009.0,0.14895915]
[1729601551250,0.149229,67011.0,67009.0,0.15495915]
[1729601551456,0.0138079,67012.0,67009.0,0.15495915]
[1729601551670,0.14923,67011.0,67009.0,0.15495915]
[1729601552466,0.14923,67011.0,67009.0,0.15295915]
[1729601552720,0.1630359,67012.0,67009.0,0.15495915]
[1729601552926,0.0138079,67012.0,67009.0,0.15495915]
[1729601553131,0.149224,67013.0,67009.0,0.30419115]
[1729601553331,0.0138079,67012.0,67009.0,0.30419115]
[1729601553503,0.1630349,67012.0,67009.0,0.15095915]
[1729601553719,0.32218225,67016.0,67009.0,0.15095915]
[1729601553720,0.0138079,67013.0,67012.0,0.149227]
[1729601553896,0.0138079,67014.0,67013.0,0.149224]
[1729601554097,0.00165,67016.0,67014.0,0.149222]
[1729601554098,0.0138079,67015.0,67014.0,0.149222]
[1729601554309,0.0138079,67015.0,67014.0,0.30116551]
[1729601554717,0.00165,67016.0,67015.0,0.14922]
[1729601554969,0.00165,67016.0,67015.0,0.29817915]
[1729601555826,0.01546539,67016.0,67015.0,0.29817915]
[1729601556044,0.00165,67016.0,67015.0,0.16295915]
[1729601556277,0.01546539,67016.0,67015.0,0.16295915]
[1729601556488,0.00165,67016.0,67015.0,0.16295915]
[1729601557120,0.01546539,67016.0,67015.0,0.17695915]
[1729601557328,0.00165,67016.0,67015.0,0.14895915]
[1729601557562,0.01546539,67016.0,67015.0,0.14895915]
[1729601557793,0.00165,67016.0,67015.0,0.16895915]
[1729601558010,0.01546539,67016.0,67015.0,0.31817915]
[1729601558242,0.00165,67016.0,67015.0,0.15795915]
[1729601558677,0.01546385,67016.0,67015.0,0.16495915]
[1729601559724,0.00165,67016.0,67015.0,0.16495915]
[1729601560133,0.01546385,67016.0,67015.0,0.16495915]
[1729601560348,0.00165,67016.0,67015.0,0.16495915]
[1729601560799,0.01546385,67016.0,67015.0,0.16495915]
[1729601561018,0.00165,67016.0,67015.0,0.31417915]
[1729601564922,0.00165,67016.0,67015.0,0.30717915]
[1729601565067,0.00165,67016.0,67015.0,0.29817915]
[1729601565267,0.00165,67016.0,67015.0,0.30517915]
[1729601565485,0.00165,67016.0,67015.0,0.31317915]
[1729601565919,0.00165,67016.0,67015.0,0.30617915]
[1729601566398,0.00165,67016.0,67015.0,0.31217915]
[1729601569969,0.00165,67016.0,67015.0,0.45042901]
[1729601572940,0.00132864,67016.0,67015.0,0.46336683]
[1729601574102,0.00132864,67016.0,67015.0,0.31414683]
[1729601574278,0.00132864,67016.0,67015.0,0.17589697]
[1729601574949,0.00132864,67016.0,67015.0,0.32511697]
[1729601579597,0.00132864,67016.0,67015.0,0.17589697]
[1729601580767,0.15054664,67016.0,67015.0,0.02693782]
[1729601581641,0.15054664,67016.0,67015.0,0.014]
[1729601587610,0.00132864,67016.0,67015.0,0.014]
[1729601587855,0.15054664,67016.0,67015.0,0.0269311]
[1729601588296,0.15054664,67016.0,67015.0,0.014]
[1729601588496,0.00132864,67016.0,67015.0,0.014]
[1729601588703,0.00132864,67016.0,67015.0,0.17589633]
[1729601589348,0.00132864,67016.0,67015.0,0.24132655]
[1729601590654,0.00132864,67016.0,67015.0,0.32511633]
[1729601591068,0.00132864,67016.0,67015.0,0.42051633]
[1729601592175,0.00132864,67016.0,67015.0,0.49871633]
[1729601593719,0.00132864,67016.0,67015.0,0.52171633]
[1729601594815,0.00132864,67016.0,67015.0,0.52671633]
[1729601595032,0.00132864,67016.0,67015.0,0.67567548]
[1729601595693,0.00132864,67016.0,67015.0,0.66967548]
[1729601595894,0.00132864,67016.0,67015.0,0.67050048]
[1729601596975,0.00132864,67016.0,67015.0,0.66250048]
[1729601597188,0.00132864,67016.0,67015.0,0.67650048]
[1729601597570,0.00132864,67016.0,67015.0,0.69050048]
[1729601604341,0.00132864,67016.0,67015.0,0.79995977]
[1729601605967,0.00132864,67016.0,67015.0,0.90941906]
[1729601606371,0.00132864,67016.0,67015.0,0.79995977]
[1729601606728,0.00132864,67016.0,67015.0,0.90941906]
[1729601609598,0.00132864,67016.0,67015.0,1.06794054]
[1729601610129,0.00132864,67016.0,67015.0,1.17739983]
[1729601611001,0.00132864,67016.0,67015.0,1.73739983]
[1729601611213,0.00132864,67016.0,67015.0,1.67687835]
[1729601611620,0.00132864,67016.0,67015.0,1.72338907]
[1729601611826,0.00132864,67016.0,67015.0,1.73738907]
[1729601612251,0.00165,67021.0,67020.0,0.289209]
[1729601612482,0.00165,67021.0,67020.0,1.58439096]
[1729601612708,0.00165,67021.0,67020.0,1.53974155]
[1729601613627,0.001648,67039.0,67031.0,0.287184]
[1729601613832,0.001648,67039.0,67031.0,0.66640635]
[1729601614240,0.00142427,67032.0,67031.0,0.66640635]
[1729601614479,0.00142427,67032.0,67031.0,0.69751196]
[1729601614895,0.00142427,67032.0,67031.0,0.75795181]
[1729601615310,0.00142427,67032.0,67031.0,1.00512591]
[1729601615515,0.00142427,67032.0,67031.0,1.01912591]
[1729601615940,0.00142427,67032.0,67031.0,1.11022591]
[1729601616141,0.00142427,67032.0,67031.0,0.92525181]
[1729601616347,0.00142427,67032.0,67031.0,0.93925181]
[1729601616582,0.00142427,67032.0,67031.0,1.33398461]
[1729601616819,0.150771,67059.0,67031.0,1.33398461]
[1729601616820,0.001648,67059.0,67058.0,0.149124]
[1729601617044,0.001648,67059.0,67058.0,0.16150777]
[1729601617045,0.15077,67059.0,67058.0,0.16150777]
[1729601618344,0.15077,67059.0,67058.0,0.16019607]
[1729601618598,0.15077,67059.0,67058.0,0.18074005]
[1729601618816,0.22857,67059.0,67058.0,0.02954398]
[1729601619020,0.22857,67059.0,67058.0,0.017]
[1729601619437,0.22857,67059.0,67058.0,0.01923697]
[1729601619872,0.22857,67059.0,67058.0,0.01023697]
[1729601620281,0.22857,67059.0,67058.0,0.01723697]
[1729601620550,0.22857,67059.0,67058.0,0.015]
[1729601621231,0.22857,67059.0,67058.0,0.01723695]
[1729601624837,0.22857,67059.0,67058.0,0.015]
[1729601625709,5.04121861,67059.0,67058.0,0.015]
[1729601626109,0.077,67058.0,67049.0,0.0022373]
[1729601626386,0.077,67058.0,67039.0,0.298333]
[1729601626387,0.149135,67053.0,67052.0,0.2237587]
[1729601626621,0.149152,67046.0,67042.0,0.3729177]
[1729601626883,0.149152,67046.0,67043.0,0.14895915]
[1729601627105,0.149152,67046.0,67043.0,0.16160488]
[1729601627812,0.14897241,67046.0,67043.0,0.16160488]
[1729601628034,0.14897241,67046.0,67045.0,0.0022373]
[1729601628285,0.14897241,67046.0,67045.0,0.15119645]
[1729601628505,0.14897241,67046.0,67045.0,0.16382577]
[1729601629227,0.14997241,67046.0,67045.0,0.16382577]
[1729601629464,0.14997241,67046.0,67045.0,0.16982577]
[1729601629698,0.14897241,67046.0,67045.0,0.16982577]
[1729601630169,0.14897241,67046.0,67045.0,0.17382577]
[1729601631376,0.14897241,67046.0,67045.0,0.16119645]
[1729601631582,0.14897241,67046.0,67045.0,0.17382577]
[1729601632420,0.14897241,67046.0,67045.0,0.16119645]
[1729601632940,0.14897241,67046.0,67045.0,0.17382577]
[1729601634067,0.14897241,67046.0,67045.0,0.16119645]
[1729601634492,0.14897241,67046.0,67045.0,0.02486662]
[1729601634759,0.32427241,67046.0,67045.0,0.02262932]
[1729601634991,0.32427241,67046.0,67045.0,0.01]
[1729601635837,0.22637241,67046.0,67045.0,0.01]
[1729601636483,0.14897241,67046.0,67045.0,0.01]
[1729601637804,0.14897241,67046.0,67045.0,0.006]
[1729601638037,0.298287,67050.0,67040.0,0.02334778]
[1729601638280,0.149157,67044.0,67041.0,0.14895915]
[1729601638504,0.149157,67044.0,67041.0,0.1596176]
[1729601638750,0.149155,67044.0,67041.0,0.1596176]
[1729601638988,0.14916,67042.0,67041.0,0.1596176]
[1729601639247,0.1766,67052.0,67041.0,0.1596176]
[1729601639464,0.4692631,67049.0,67041.0,0.1596176]
[1729601639682,0.149158,67043.0,67041.0,0.1676176]
[1729601639884,0.149158,67043.0,67041.0,0.15695915]
[1729601640122,0.001,67044.0,67041.0,0.15695915]
[1729601640123,0.150156,67044.0,67042.0,0.01065025]
[1729601640811,0.149156,67044.0,67042.0,0.01065025]
[1729601641297,0.149158,67043.0,67042.0,0.01065025]
[1729601641517,0.149158,67043.0,67042.0,0.01465025]
[1729601641748,0.149158,67043.0,67042.0,0.02065025]
[1729601642695,0.149158,67043.0,67042.0,0.01465025]
[1729601643430,0.1766,67052.0,67042.0,0.1596094]
[1729601643659,0.149147,67048.0,67043.0,0.14895915]
[1729601643904,0.149151,67047.0,67043.0,0.14895915]
[1729601644141,0.14915,67047.0,67044.0,0.01063831]
[1729601644377,0.00165,67054.0,67045.0,0.14895915]
[1729601644378,0.149146,67048.0,67045.0,0.14895915]
[1729601644613,0.149149,67047.0,67045.0,0.15958908]
[1729601645972,0.149151,67046.0,67045.0,0.15958908]
[1729601646203,0.149149,67047.0,67045.0,0.15278908]
[1729601646665,0.149147,67048.0,67045.0,0.15378908]
[1729601647162,0.149142,67050.0,67045.0,0.15278908]
[1729601647407,0.149148,67048.0,67045.0,0.15278908]
[1729601647639,0.149148,67048.0,67045.0,0.15578908]
[1729601647870,0.149148,67048.0,67045.0,0.15378908]
[1729601648105,0.149148,67048.0,67045.0,0.15278908]
[1729601648337,0.149149,67047.0,67045.0,0.15578908]
[1729601648821,0.149151,67046.0,67045.0,0.15578908]
[1729601649065,0.149151,67046.0,67045.0,0.01362993]
[1729601649066,0.25856375,67046.0,67045.0,0.01362993]
[1729601649552,0.149151,67046.0,67045.0,0.001]
[1729601650009,0.149149,67047.0,67045.0,0.001]
[1729601650235,0.149149,67047.0,67042.0,0.000825]
[1729601650236,0.447439,67048.0,67042.0,0.000825]
[1729601650477,0.298289,67049.0,67045.0,0.001]
[1729601650704,0.149151,67046.0,67045.0,0.001]
[1729601650933,0.149151,67046.0,67045.0,0.003]
[1729601651145,0.149151,67046.0,67045.0,0.002]
[1729601651417,0.00165,67054.0,67043.0,0.14895915]
[1729601651418,0.149155,67044.0,67043.0,0.14895915]
[1729601651664,0.149153,67045.0,67043.0,0.14895915]
[1729601652841,0.149153,67045.0,67043.0,0.15395915]
[1729601653096,0.149153,67045.0,67044.0,0.01063198]
[1729601654329,0.149153,67045.0,67044.0,0.01263198]
[1729601654532,0.149153,67045.0,67044.0,0.01663198]
[1729601654790,0.298301,67047.0,67044.0,0.01663198]
[1729601654990,0.149153,67045.0,67044.0,0.01663198]
[1729601656379,0.149153,67045.0,67044.0,0.01463198]
[1729601656859,0.149153,67045.0,67044.0,0.01663198]
[1729601657110,0.149152,67046.0,67044.0,0.01663198]
[1729601657353,0.00165,67046.0,67044.0,0.01463198]
[1729601657597,0.150801,67046.0,67044.0,0.01663198]
[1729601658056,0.150801,67046.0,67044.0,0.01463198]
[1729601658270,0.150801,67046.0,67044.0,0.01063198]
[1729601658761,0.150801,67046.0,67044.0,0.01663198]
[1729601659200,0.149153,67045.0,67044.0,0.01663198]
[1729601660693,0.00165,67046.0,67044.0,0.01663198]
[1729601660694,0.150801,67046.0,67044.0,0.01663198]
[1729601660925,0.150801,67046.0,67044.0,0.01463198]
[1729601660926,0.00165,67046.0,67044.0,0.01463198]
[1729601661169,0.00165,67046.0,67044.0,0.09603198]
[1729601661386,0.149153,67045.0,67044.0,0.09203198]
[1729601661611,0.149153,67045.0,67044.0,0.09403198]
[1729601661829,0.149153,67045.0,67044.0,0.09803198]
[1729601662050,0.150801,67046.0,67044.0,0.09403198]
[1729601662712,0.00165,67046.0,67044.0,0.24522848]
[1729601662955,0.00165,67046.0,67045.0,0.29811215]
[1729601663177,0.00165,67046.0,67045.0,0.32409502]
[1729601663412,0.00165,67046.0,67045.0,0.33173138]
[1729601663665,0.00165,67046.0,67045.0,0.54464353]
[1729601664362,0.00265,67046.0,67045.0,0.7295605]
[1729601664583,0.00265,67046.0,67045.0,0.83153843]
[1729601664800,0.00265,67046.0,67045.0,0.81753843]
[1729601664801,0.00165,67046.0,67045.0,0.81753843]
[1729601665060,0.00165,67046.0,67045.0,0.83153843]
[1729601665286,0.00165,67046.0,67045.0,0.7295605]
[1729601665514,0.00165,67046.0,67045.0,0.54964353]
[1729601666198,0.00165,67046.0,67045.0,0.41349053]
[1729601666416,0.00165,67046.0,67045.0,0.33887838]
[1729601666632,0.00165,67046.0,67045.0,0.35287838]
[1729601666874,0.00165,67046.0,67045.0,0.50203138]
[1729601668727,0.00165,67046.0,67045.0,0.65099053]
[1729601669168,0.00165,67046.0,67045.0,0.50203138]
[1729601671933,0.00165,67046.0,67045.0,0.49870762]
[1729601672356,0.00165,67046.0,67045.0,0.49141215]
[1729601672525,0.00165,67046.0,67045.0,0.34225915]
[1729601672745,0.00165,67046.0,67045.0,0.17595915]
[1729601673179,0.00165,67046.0,67045.0,0.027]
[1729601673375,0.150801,67046.0,67045.0,0.027]
[1729601674010,0.00165,67046.0,67045.0,0.027]